bitfinex/quotes_ETHUSD_20240607
["timestamp","ask_amount","ask_price","bid_price","bid_amount"]
[1717732108369,6.0808378,3809.0,3808.9,0.0032695]
[1717732108580,6.8688378,3809.0,3808.9,0.0032695]
[1717732109394,8.7061978,3809.0,3808.9,0.0032695]
[1717732109696,14.42308533,3809.0,3808.9,0.0032695]
[1717732109998,14.8991978,3809.0,3808.9,0.0032695]
[1717732110334,17.17769619,3809.0,3808.9,0.0032695]
[1717732110572,14.8991978,3809.0,3808.9,0.0032695]
[1717732111001,17.17769619,3809.0,3808.9,0.0032695]
[1717732111187,14.8991978,3809.0,3808.9,0.0032695]
[1717732111608,17.17769619,3809.0,3808.9,0.0032695]
[1717732112199,16.61011439,3809.0,3808.9,0.0032695]
[1717732112514,14.89925062,3809.0,3808.9,0.0032695]
[1717732113977,12.49425062,3809.0,3808.9,0.0032695]
[1717732114181,14.16048173,3809.0,3808.9,0.0032695]
[1717732114386,12.23171462,3809.0,3808.9,0.0032695]
[1717732115380,14.16048173,3809.0,3808.9,0.0032695]
[1717732117321,14.16042457,3809.0,3808.9,0.0032695]
[1717732119524,12.23165746,3809.0,3808.9,0.0032695]
[1717732119720,13.91038412,3809.0,3808.9,0.0032695]
[1717732123526,13.91038488,3809.0,3808.9,0.0032695]
[1717732125118,15.83939166,3809.0,3808.9,0.0032695]
[1717732125298,13.91038488,3809.0,3808.9,0.0032695]
[1717732127902,15.83944258,3809.0,3808.9,0.0032695]
[1717732128101,13.91038488,3809.0,3808.9,0.0032695]
[1717732128644,12.42607669,3809.0,3808.9,0.0032695]
[1717732128848,10.49702488,3809.0,3808.9,0.0032695]
[1717732129431,12.42607669,3809.0,3808.9,0.0032695]
[1717732129827,10.49702488,3809.0,3808.9,0.0032695]
[1717732130404,12.42607669,3809.0,3808.9,0.0032695]
[1717732130943,10.49702488,3809.0,3808.9,0.0032695]
[1717732134349,12.42607669,3809.0,3808.9,0.0032695]
[1717732141406,14.33311186,3809.0,3808.9,0.0032695]
[1717732142729,14.33359515,3809.0,3808.9,0.0032695]
[1717732143835,12.40406005,3809.0,3808.9,0.0032695]
[1717732144043,14.33360261,3809.0,3808.9,0.0032695]
[1717732144424,12.40406005,3809.0,3808.9,0.0032695]
[1717732144858,14.33361024,3809.0,3808.9,0.0032695]
[1717732145155,12.40406005,3809.0,3808.9,0.0032695]
[1717732145959,14.33361464,3809.0,3808.9,0.0032695]
[1717732146133,10.49702488,3809.0,3808.9,0.0032695]
[1717732146683,12.40407751,3809.0,3808.9,0.0032695]
[1717732153390,12.40406671,3809.0,3808.9,0.0032695]
[1717732155294,12.40406898,3809.0,3808.9,0.0032695]
[1717732156747,12.40407875,3809.0,3808.9,0.0032695]
[1717732163592,12.40409569,3809.0,3808.9,0.0032695]
[1717732167289,13.44391662,3809.0,3808.9,0.0032695]
[1717732168386,12.65591662,3809.0,3808.9,0.0032695]
[1717732168714,11.51338011,3809.0,3808.9,0.0032695]
[1717732168918,13.44379259,3809.0,3808.9,0.0032695]
[1717732170382,10.72538011,3809.0,3808.9,0.0032695]
[1717732170706,11.51333664,3809.0,3808.9,0.0032695]
[1717732172319,11.51334855,3809.0,3808.9,0.0032695]
[1717732172522,10.72534855,3809.0,3808.9,0.0032695]
[1717732172834,7.03036216,3809.0,3808.9,2.4394695]
[1717732173112,5.09998855,3809.0,3808.9,2.4394695]
[1717732173276,4.53241263,3809.0,3808.9,2.4394695]
[1717732173678,5.09998855,3809.0,3808.9,2.4394695]
[1717732174217,4.53241263,3809.0,3808.9,2.4394695]
[1717732174514,5.09998855,3809.0,3808.9,2.4394695]
[1717732175015,4.53241263,3809.0,3808.9,2.4394695]
[1717732175391,5.09998855,3809.0,3808.9,2.4394695]
[1717732175719,4.53241263,3809.0,3808.9,2.4394695]
[1717732176073,5.09998855,3809.0,3808.9,2.4394695]
[1717732176275,4.53241263,3809.0,3808.9,2.4394695]
[1717732176718,5.09995259,3809.0,3808.9,2.4394695]
[1717732177022,4.53241263,3809.0,3808.9,2.4394695]
[1717732177382,5.099955,3809.0,3808.9,2.4394695]
[1717732177808,4.53241263,3809.0,3808.9,2.4394695]
[1717732178195,5.099955,3809.0,3808.9,2.4394695]
[1717732178399,4.53241263,3809.0,3808.9,2.4394695]
[1717732184398,3.19288552,3809.0,3808.9,2.4394695]
[1717732184706,4.53232971,3809.0,3808.9,2.4394695]
[1717732185091,4.53232738,3809.0,3808.9,0.0032695]
[1717732185334,5.88157086,3809.0,3808.9,0.0032695]
[1717732186830,5.88159261,3809.0,3808.9,0.0032695]
[1717732188927,8.50695261,3809.0,3808.9,0.0032695]
[1717732190221,8.50700423,3809.0,3808.9,0.0032695]
[1717732190421,10.43575465,3809.0,3808.9,0.0032695]
[1717732190649,7.81039465,3809.0,3808.9,0.0032695]
[1717732190867,5.88164423,3809.0,3808.9,0.0032695]
[1717732193135,6.66964423,3809.0,3808.9,0.0032695]
[1717732193312,5.88164423,3809.0,3808.9,0.0032695]
[1717732194211,4.7626551,3809.0,3808.9,0.0032695]
[1717732194407,5.8816251,3809.0,3808.9,0.0032695]
[1717732195154,6.6696251,3809.0,3808.9,0.0032695]
[1717732195455,5.8816251,3809.0,3808.9,0.0032695]
[1717732196146,6.6696251,3809.0,3808.9,0.0032695]
[1717732196313,5.8816251,3809.0,3808.9,0.0032695]
[1717732197150,6.6696251,3809.0,3808.9,0.0032695]
[1717732197355,5.8816251,3809.0,3808.9,0.0032695]
[1717732198125,6.6696251,3809.0,3808.9,0.0032695]
[1717732198323,5.8816251,3809.0,3808.9,0.0032695]
[1717732199149,6.6696251,3809.0,3808.9,0.0032695]
[1717732199357,5.8816251,3809.0,3808.9,0.0032695]
[1717732201857,5.88161533,3809.0,3808.9,0.0032695]
[1717732202988,5.88164546,3809.0,3808.9,0.0032695]
[1717732208459,5.31407809,3809.0,3808.9,0.0032695]
[1717732208659,5.88164119,3809.0,3808.9,0.0032695]
[1717732209096,5.88164028,3809.0,3808.9,0.0032695]
[1717732220791,2.47456232,3809.0,3808.9,2.5001695]
[1717732221014,2.47456232,3809.0,3808.9,3.2881695]
[1717732221162,0.56756219,3809.4,3809.0,2.62532]
[1717732221363,0.56756219,3809.5,3809.3,0.788]
[1717732221558,0.56756219,3809.5,3809.4,3.142906]
[1717732223505,7.464,3809.6,3809.4,3.142906]
[1717732224008,7.464,3809.6,3809.5,0.09714131]
[1717732224204,8.03138541,3809.6,3809.5,0.09714131]
[1717732224368,8.03138541,3809.6,3809.5,1.55046204]
[1717732224709,8.03138541,3809.6,3809.5,0.76246204]
[1717732224906,7.464,3809.6,3809.5,0.76246204]
[1717732225800,8.03138987,3809.6,3809.5,0.76246204]
[1717732226105,7.464,3809.6,3809.5,0.66532073]
[1717732226497,7.464,3809.6,3809.5,1.45332073]
[1717732226802,7.464,3809.6,3809.5,0.66532073]
[1717732227098,7.464,3809.6,3809.5,0.76246204]
[1717732227302,8.03139899,3809.6,3809.5,0.76246204]
[1717732227511,8.03139899,3809.6,3809.5,1.55046204]
[1717732227682,8.03139899,3809.6,3809.5,0.76246204]
[1717732228006,7.464,3809.6,3809.5,0.76246204]
[1717732228209,10.0012992,3810.0,3809.5,0.76246204]
[1717732228510,0.56742031,3809.9,3809.5,1.45332073]
[1717732228705,0.56742031,3809.9,3809.6,0.39502207]
[1717732230386,3.19218031,3809.9,3809.6,0.39502207]
[1717732235313,3.19218031,3809.9,3809.4,2.4969]
[1717732235516,3.19218031,3809.9,3809.5,0.788]
[1717732235693,3.19218031,3809.9,3809.4,2.4969]
[1717732236482,3.19218031,3809.9,3809.5,0.788]
[1717732236820,3.19218031,3809.9,3809.4,2.4969]
[1717732237019,3.19218031,3809.9,3809.5,0.591006]
[1717732237382,3.19218031,3809.9,3809.5,1.379006]
[1717732237590,3.19218031,3809.9,3809.5,0.591006]
[1717732239395,3.19218031,3809.9,3809.5,1.379006]
[1717732239618,3.19218031,3809.9,3809.5,0.591006]
[1717732240326,2.62491,3809.7,3809.1,2.3232]
[1717732240483,2.62491,3809.7,3809.1,3.1112]
[1717732240989,2.62491,3809.7,3809.2,0.09690048]
[1717732241425,2.62491,3809.7,3809.3,0.788]
[1717732241596,2.62491,3809.7,3809.2,0.09690048]
[1717732243003,2.62504,3809.5,3809.2,0.09690048]
[1717732243418,2.62504,3809.5,3809.2,0.88490048]
[1717732244424,2.62504,3809.5,3809.3,0.788]
[1717732244611,2.62504,3809.5,3809.2,0.09690048]
[1717732244926,2.62504,3809.5,3809.4,0.09690048]
[1717732249488,2.62504,3809.5,3809.4,0.88490048]
[1717732249692,2.62504,3809.5,3809.4,0.09690048]
[1717732251414,2.62504,3809.5,3809.4,0.88490048]
[1717732251614,3.19247711,3809.5,3809.4,0.09690048]
[1717732251841,2.62504,3809.5,3809.4,0.09690048]
[1717732252768,3.19245534,3809.5,3809.4,0.09690048]
[1717732253053,2.62504,3809.5,3809.4,0.09690048]
[1717732254137,3.19245534,3809.5,3809.4,0.09690048]
[1717732254353,2.62504,3809.5,3809.4,0.09690048]
[1717732255518,3.19245534,3809.5,3809.4,0.88490048]
[1717732255746,2.62504,3809.5,3809.4,0.09690048]
[1717732256566,3.19245534,3809.5,3809.4,0.09690048]
[1717732256871,2.62504,3809.5,3809.4,0.09690048]
[1717732257812,3.19245534,3809.5,3809.4,0.09690048]
[1717732258053,2.62504,3809.5,3809.1,3.1112]
[1717732258424,0.56741534,3809.4,3809.3,0.788]
[1717732258662,0.56741534,3809.4,3809.2,0.09692688]
[1717732259513,0.56741534,3809.4,3809.3,0.788]
[1717732259853,0.56741534,3809.4,3809.2,0.09692688]
[1717732260007,2.62504,3809.5,3809.2,0.09692688]
[1717732260206,2.62504,3809.5,3809.1,2.3232]
[1717732260526,0.56741534,3809.4,3809.3,0.788]
[1717732260729,0.56741534,3809.4,3809.2,0.09692688]
[1717732260927,2.62504,3809.5,3809.2,0.09692688]
[1717732261428,2.62504,3809.5,3809.4,0.788]
[1717732261647,3.19245534,3809.5,3809.4,0.00320058]
[1717732261814,2.62504,3809.5,3809.2,0.88169873]
[1717732262326,3.19245534,3809.5,3809.3,0.00321437]
[1717732262663,0.56741534,3809.4,3809.3,0.00321437]
[1717732262813,2.62504,3809.5,3809.2,0.09369873]
[1717732263012,2.62504,3809.5,3809.3,0.09692689]
[1717732263252,3.19245534,3809.5,3809.3,0.09692689]
[1717732263457,2.62504,3809.5,3809.4,0.788]
[1717732263653,2.62504,3809.5,3809.3,0.09692689]
[1717732264015,3.19245534,3809.5,3809.3,0.09692689]
[1717732264217,2.62504,3809.5,3809.2,0.788]
[1717732264538,2.62504,3809.5,3809.4,0.788]
[1717732264740,2.62504,3809.5,3809.2,0.788]
[1717732265547,2.62504,3809.5,3809.4,0.788]
[1717732265776,2.62504,3809.5,3809.2,0.788]
[1717732265970,3.19245534,3809.5,3809.2,0.788]
[1717732266263,3.19245534,3809.5,3809.1,2.3232]
[1717732266448,2.62504,3809.5,3809.4,0.788]
[1717732266768,2.62504,3809.5,3809.2,0.788]
[1717732266967,2.62504,3809.5,3809.4,0.09692688]
[1717732267340,2.62504,3809.5,3809.2,0.788]
[1717732267341,3.19245534,3809.5,3809.2,0.788]
[1717732267690,2.62504,3809.5,3809.2,0.788]
[1717732268177,2.62504,3809.5,3809.1,2.3232]
[1717732268498,3.19245534,3809.5,3809.4,0.788]
[1717732268639,3.19245534,3809.5,3809.3,0.09692689]
[1717732268975,2.62504,3809.5,3809.3,0.09692689]
[1717732269274,0.56741534,3809.4,3809.3,0.09692689]
[1717732274192,2.62504,3809.5,3809.3,0.09692689]
[1717732274389,0.56742018,3809.4,3809.3,0.09692689]
[1717732274694,0.56742018,3809.4,3809.3,0.788]
[1717732275091,0.56742018,3809.4,3809.3,0.88495655]
[1717732275388,0.56742018,3809.4,3809.3,0.09695655]
[1717732276388,0.56742018,3809.4,3809.2,0.788]
[1717732277190,0.56741596,3809.4,3809.1,2.3232]
[1717732277491,0.56741596,3809.4,3809.3,0.09695655]
[1717732278394,0.56741596,3809.4,3809.2,0.788]
[1717732279155,0.56741596,3809.4,3809.1,2.3232]
[1717732279600,0.56741596,3809.4,3809.3,0.788]
[1717732280399,0.56741596,3809.4,3809.2,0.88495655]
[1717732280763,0.56741596,3809.4,3809.2,0.09695655]
[1717732280967,0.56741596,3809.4,3809.2,0.88495655]
[1717732281167,0.56741596,3809.4,3809.2,0.09695655]
[1717732281402,2.62504,3809.5,3809.2,0.88495655]
[1717732281903,0.56741596,3809.4,3809.2,0.88495655]
[1717732282899,0.56741596,3809.3,3809.2,0.88495655]
[1717732283204,0.56741596,3809.4,3809.2,0.09695655]
[1717732283385,0.56741596,3809.4,3809.3,0.788]
[1717732283584,0.56741596,3809.4,3809.3,0.00321437]
[1717732283886,0.56741596,3809.4,3809.2,0.0937284]
[1717732284090,0.56741596,3809.4,3809.3,0.09696645]
[1717732284504,0.56741596,3809.4,3809.3,0.88496645]
[1717732284719,0.56741596,3809.4,3809.3,0.09696645]
[1717732285510,0.56741596,3809.4,3809.3,0.88496645]
[1717732285728,0.56741596,3809.4,3809.3,0.09696645]
[1717732286505,0.56741596,3809.4,3809.3,0.88496645]
[1717732286806,0.56741596,3809.4,3809.3,0.09696645]
[1717732287368,0.56741596,3809.4,3809.3,0.88496645]
[1717732288215,0.56741596,3809.4,3809.3,0.09696645]
[1717732290731,0.56742712,3809.4,3809.3,0.09696645]
[1717732291119,2.62504,3809.5,3809.3,0.09696645]
[1717732291416,0.56741255,3809.4,3809.3,0.09696645]
[1717732291715,0.56741255,3809.4,3809.3,0.88496645]
[1717732291911,0.56741255,3809.4,3809.3,0.09696645]
[1717732292479,0.56741255,3809.4,3809.3,0.88496645]
[1717732293280,0.56741255,3809.4,3809.3,0.09696645]
[1717732293696,2.62504,3809.5,3809.3,0.09696645]
[1717732294015,0.56741255,3809.4,3809.3,0.09696645]
[1717732297777,0.56742886,3809.4,3809.3,0.09696645]
[1717732300595,0.88667575,3809.4,3809.3,0.09696645]
[1717732300919,2.4355,3809.3,3808.3,5.78889]
[1717732301101,1.57648161,3808.5,3808.3,3.41379]
[1717732301443,1.57649343,3808.6,3808.4,0.09687737]
[1717732301940,1.57649343,3808.5,3808.4,0.09687737]
[1717732302318,1.57649343,3808.6,3808.4,0.09687737]
[1717732302628,1.57649343,3808.6,3808.5,0.788]
[1717732302835,1.57649343,3808.6,3808.5,0.88487737]
[1717732303353,1.57649343,3808.6,3808.5,0.09687737]
[1717732303544,1.57649343,3808.6,3808.5,0.88487737]
[1717732304305,1.57649343,3808.7,3808.5,0.09687737]
[1717732304631,1.57649343,3808.7,3808.5,0.88487737]
[1717732305250,1.57649343,3808.7,3808.5,0.09687737]
[1717732305407,1.57649343,3808.7,3808.5,0.88487737]
[1717732306752,1.57649343,3808.7,3808.6,2.3751]
[1717732306954,4.20194343,3808.9,3808.6,2.3751]
[1717732307253,4.20194343,3808.9,3808.8,0.788]
[1717732308120,2.62545,3808.9,3808.8,0.788]
[1717732308319,4.20186139,3808.9,3808.8,0.788]
[1717732308961,2.62545,3808.9,3808.8,0.788]
[1717732309356,4.20186142,3808.9,3808.6,3.1631]
[1717732309559,4.20186142,3808.9,3808.8,0.788]
[1717732310238,4.20186142,3808.9,3808.6,2.3751]
[1717732310433,4.20186142,3808.9,3808.7,0.788]
[1717732310634,4.20188319,3808.9,3808.7,0.788]
[1717732312353,4.20188319,3808.9,3808.5,0.788]
[1717732312554,4.20188319,3808.9,3808.7,0.788]
[1717732312857,2.62558,3808.7,3808.0,2.626]
[1717732313047,2.62558,3808.7,3808.4,0.788]
[1717732313433,2.62558,3808.7,3808.6,0.788]
[1717732314249,2.62558,3808.7,3808.4,0.788]
[1717732314448,2.62558,3808.7,3808.6,0.788]
[1717732314635,2.62558,3808.7,3808.4,0.788]
[1717732315558,2.62558,3808.7,3808.6,0.788]
[1717732316223,2.62558,3808.7,3808.4,0.788]
[1717732316425,2.62558,3808.7,3808.6,0.788]
[1717732317125,2.62558,3808.7,3808.6,0.88172158]
[1717732317368,2.62558,3808.7,3808.6,0.09372158]
[1717732317536,2.62558,3808.7,3808.6,0.88172158]
[1717732317744,2.62558,3808.7,3808.2,2.3373]
[1717732318049,2.62558,3808.7,3808.4,0.788]
[1717732318570,2.62558,3808.7,3808.6,0.788]
[1717732319174,2.62558,3808.7,3808.6,0.88172158]
[1717732320262,2.62558,3808.7,3808.6,0.09372158]
[1717732320567,2.62558,3808.7,3808.6,0.788]
[1717732320729,2.62558,3808.7,3808.6,0.88172158]
[1717732321132,4.20201319,3808.7,3808.6,0.88172158]
[1717732322630,4.20201319,3808.7,3808.6,0.09372158]
[1717732322830,4.20201319,3808.7,3808.4,0.788]
[1717732323031,4.20201319,3808.7,3808.6,0.09372158]
[1717732323225,4.20201319,3808.7,3808.4,0.788]
[1717732323430,4.20201319,3808.7,3808.6,0.88172158]
[1717732323630,4.20201319,3808.7,3808.5,0.09370779]
[1717732323872,4.20206416,3808.7,3808.4,0.788]
[1717732324070,4.20206416,3808.7,3808.6,0.09372158]
[1717732324374,2.62558,3808.7,3808.4,0.788]
[1717732324535,2.62558,3808.7,3808.6,0.09372158]
[1717732324736,2.62558,3808.7,3808.5,0.09370779]
[1717732324951,2.62558,3808.7,3808.6,0.09372158]
[1717732325276,2.62558,3808.7,3808.4,0.788]
[1717732325430,1.57651094,3808.5,3808.4,0.788]
[1717732325831,1.57651094,3808.6,3808.4,0.788]
[1717732326238,1.57651094,3808.5,3808.4,0.788]
[1717732329303,0.56753429,3808.5,3808.4,0.788]
[1717732329491,0.56753429,3808.6,3808.4,0.788]
[1717732329710,0.56753429,3808.5,3808.4,0.788]
[1717732329881,0.56753429,3808.6,3808.4,0.788]
[1717732330301,0.56753429,3808.5,3808.2,3.1253]
[1717732330509,2.62558,3808.7,3808.4,0.788]
[1717732330666,0.56754103,3808.6,3808.4,0.788]
[1717732330865,0.56754103,3808.5,3808.4,0.788]
[1717732331294,0.56754103,3808.5,3808.2,3.1253]
[1717732331494,1.57651373,3808.3,3808.2,2.912437]
[1717732331668,1.57651373,3808.3,3808.2,3.700437]
[1717732332096,1.57651373,3808.3,3808.2,3.79410342]
[1717732332410,1.57651373,3808.4,3808.2,3.79410342]
[1717732332935,1.57651373,3808.3,3808.2,3.79410342]
[1717732338452,1.57651373,3808.4,3808.2,3.79410342]
[1717732338608,2.14405476,3808.4,3808.3,0.788]
[1717732338813,2.14405476,3808.4,3808.3,0.88167691]
[1717732339013,1.57651373,3808.4,3808.3,0.88167691]
[1717732339519,2.62558,3808.7,3808.3,0.88167691]
[1717732339737,1.57651986,3808.4,3808.3,0.88167691]
[1717732340293,2.62558,3808.7,3808.3,0.88167691]
[1717732340595,1.57649554,3808.4,3808.3,0.09367691]
[1717732340743,1.57649554,3808.4,3808.3,0.88167691]
[1717732340974,2.14403393,3808.4,3808.3,0.788]
[1717732341282,1.57649554,3808.4,3808.3,0.88167691]
[1717732341491,0.56753839,3808.5,3808.3,0.88167691]
[1717732341831,0.56753839,3808.4,3808.3,0.88167691]
[1717732342089,0.56753839,3808.6,3808.3,0.88167691]
[1717732342222,0.56753839,3808.5,3808.3,0.88167691]
[1717732342427,2.62558,3808.7,3808.3,0.88167691]
[1717732342428,0.56753839,3808.4,3808.3,0.88167691]
[1717732342847,0.56753839,3808.6,3808.3,0.88167691]
[1717732343024,0.56753839,3808.5,3808.3,0.88167691]
[1717732343227,0.56753839,3808.4,3808.3,0.88167691]
[1717732343875,0.56753839,3808.6,3808.3,0.88167691]
[1717732344075,0.56753839,3808.5,3808.3,0.88167691]
[1717732344364,0.56753839,3808.4,3808.3,0.88167691]
[1717732346292,0.56753839,3808.4,3808.3,0.09367691]
[1717732346444,0.56753839,3808.4,3808.3,0.788]
[1717732346622,0.56753839,3808.4,3808.3,0.88163071]
[1717732346922,0.56755748,3808.4,3808.3,0.88163071]
[1717732351962,0.56755748,3808.4,3808.3,1.47034378]
[1717732352193,1.57649657,3808.4,3808.3,4.36754378]
[1717732352363,1.57640949,3808.5,3808.4,2.62577]
[1717732352563,1.57640949,3808.5,3808.4,3.87510138]
[1717732352764,1.57640949,3808.5,3808.4,3.96876237]
[1717732352963,2.1439169,3808.5,3808.4,3.96876237]
[1717732353212,1.57640949,3808.5,3808.4,3.96876237]
[1717732354174,1.57640949,3808.5,3808.4,4.75676237]
[1717732355116,1.57640949,3808.5,3808.4,7.15616237]
[1717732355501,1.57640949,3808.6,3808.4,7.15616237]
[1717732355686,1.57640949,3808.7,3808.5,1.338]
[1717732356015,1.57640949,3808.7,3808.5,1.43167478]
[1717732356395,2.1439169,3808.7,3808.5,1.43167478]
[1717732356568,1.57640949,3808.7,3808.5,1.43167478]
[1717732356971,2.1439169,3808.7,3808.6,0.788]
[1717732357208,1.57640949,3808.7,3808.6,0.88159291]
[1717732357511,2.62542,3809.0,3808.6,0.88159291]
[1717732357512,0.56750741,3808.8,3808.6,0.88159291]
[1717732357669,0.56750741,3808.7,3808.6,0.88159291]
[1717732358001,0.56750741,3808.9,3808.6,0.88159291]
[1717732358203,0.56750741,3808.8,3808.6,0.88159291]
[1717732358408,0.56750741,3808.7,3808.6,0.788]
[1717732358571,0.56750993,3808.9,3808.6,0.788]
[1717732358770,0.56750993,3808.8,3808.6,0.788]
[1717732359000,0.56750993,3808.7,3808.6,0.788]
[1717732360107,0.56750993,3808.9,3808.6,0.788]
[1717732360264,0.56750993,3808.8,3808.6,0.788]
[1717732360468,0.56750993,3808.7,3808.6,0.788]
[1717732360664,0.56750993,3808.9,3808.6,0.788]
[1717732360894,0.56750993,3808.8,3808.6,0.788]
[1717732361078,0.56750993,3808.7,3808.6,0.788]
[1717732361482,1.57639781,3808.7,3808.6,0.788]
[1717732362135,1.57639781,3808.7,3808.6,0.88159291]
[1717732363308,1.57639781,3808.8,3808.6,0.88159291]
[1717732363810,1.57639781,3808.7,3808.6,0.88159291]
[1717732365672,2.62542,3809.0,3808.6,0.88159291]
[1717732365874,1.57636363,3808.7,3808.6,0.88159291]
[1717732367718,1.57639106,3808.7,3808.6,0.88159291]
[1717732369828,1.57637758,3808.7,3808.6,0.88159291]
[1717732372031,1.57637758,3808.7,3808.6,0.09359291]
[1717732372237,1.57637758,3808.7,3808.4,3.41377]
[1717732372542,1.5764538,3808.6,3808.5,0.55]
[1717732373656,3.19307592,3808.8,3808.2,2.3623]
[1717732373856,0.56752592,3808.7,3808.5,0.788]
[1717732374722,0.56752592,3808.6,3808.5,0.788]
[1717732374923,0.56752592,3808.7,3808.5,0.788]
[1717732375328,1.57642015,3808.6,3808.5,0.788]
[1717732377086,1.57642015,3808.6,3808.5,0.88157252]
[1717732378372,0.56752592,3808.6,3808.5,0.88157252]
[1717732378875,2.1439586,3808.7,3808.5,0.88157252]
[1717732379039,1.57643268,3808.7,3808.6,0.788]
[1717732379376,1.57633664,3808.7,3808.6,0.88158631]
[1717732379939,0.56748119,3808.7,3808.6,0.88158631]
[1717732380138,0.56748119,3809.0,3808.6,0.88158631]
[1717732380341,0.56748119,3808.9,3808.6,0.88158631]
[1717732380538,0.56748119,3808.8,3808.6,0.788]
[1717732380739,0.56748119,3808.7,3808.6,0.788]
[1717732381196,0.56749831,3809.0,3808.6,0.788]
[1717732381399,0.56749831,3808.9,3808.6,0.788]
[1717732381560,0.56749831,3808.8,3808.6,0.788]
[1717732381929,0.56749831,3808.7,3808.6,0.788]
[1717732383291,0.56749831,3808.7,3808.6,3.599483]
[1717732383292,2.14388157,3808.7,3808.6,3.599483]
[1717732383600,1.57638326,3808.7,3808.6,3.8081]
[1717732383901,1.57638326,3809.0,3808.7,2.62556]
[1717732384198,1.57638326,3809.0,3808.8,0.788]
[1717732384364,1.57638326,3809.0,3808.9,0.643366]
[1717732384565,1.57638326,3809.0,3808.8,0.788]
[1717732384765,1.57638326,3808.9,3808.8,0.788]
[1717732387027,0.56745468,3809.1,3808.8,0.788]
[1717732387326,2.14371768,3809.0,3808.8,0.788]
[1717732387503,1.576263,3809.0,3808.8,0.788]
[1717732387687,0.56745468,3809.2,3808.9,0.643366]
[1717732388023,0.56745468,3809.1,3808.9,0.643366]
[1717732388195,1.57626492,3809.0,3808.9,0.643366]
[1717732389551,0.56745468,3809.2,3808.8,0.788]
[1717732389930,1.57631649,3808.9,3808.8,0.788]
[1717732390630,1.57631649,3808.9,3808.7,2.62556]
[1717732390783,1.57631649,3808.8,3808.7,3.41356]
[1717732392007,1.57631649,3808.8,3808.7,3.5071403]
[1717732392937,1.57631649,3808.8,3808.7,0.0935803]
[1717732393140,2.90962312,3808.8,3808.7,0.0935803]
[1717732393357,2.62562,3808.7,3808.2,0.788]
[1717732393503,1.5765271,3808.4,3808.2,0.788]
[1717732393836,1.5765271,3808.4,3808.3,0.09351195]
[1717732394013,1.5765271,3808.4,3808.2,0.788]
[1717732394209,1.5765271,3808.4,3808.3,0.09351195]
[1717732394797,1.5765271,3808.4,3808.2,0.788]
[1717732395003,1.5765271,3808.4,3808.3,0.09351195]
[1717732395306,1.5765271,3808.4,3808.2,0.788]
[1717732395617,1.5765271,3808.4,3808.3,0.09351195]
[1717732395932,1.5765271,3808.4,3808.2,0.788]
[1717732396137,1.5765271,3808.4,3808.3,0.09351195]
[1717732396847,1.5765271,3808.4,3808.2,0.788]
[1717732397177,1.5765271,3808.4,3808.3,0.09351195]
[1717732397576,1.5765271,3808.4,3808.2,0.788]
[1717732397731,1.5765271,3808.4,3808.3,0.09351195]
[1717732397935,1.5765271,3808.4,3808.2,0.788]
[1717732398283,1.5765271,3808.4,3808.3,0.09351195]
[1717732398575,1.5765271,3808.4,3808.2,0.788]
[1717732399383,1.5765271,3808.4,3808.3,0.09351195]
[1717732399674,1.5765271,3808.4,3808.2,0.788]
[1717732399839,4.2022571,3808.5,3808.3,0.09351195]
[1717732400037,1.5765271,3808.5,3808.4,0.788]
[1717732400242,1.5765271,3808.5,3808.4,1.46990274]
[1717732400433,4.2020771,3808.8,3808.4,1.46990274]
[1717732400637,4.2020771,3808.8,3808.6,0.788]
[1717732400878,1.5765271,3808.7,3808.6,0.788]
[1717732402066,1.5765271,3808.7,3808.3,2.62583]
[1717732402268,1.5765271,3808.7,3808.4,0.788]
[1717732402473,1.5765271,3808.6,3808.4,0.788]
[1717732402981,4.20211806,3808.6,3808.3,0.788]
[1717732403587,1.57647806,3808.5,3808.3,0.788]
[1717732404356,2.62578,3808.4,3807.9,2.4698]
[1717732404756,4.20225806,3808.4,3808.2,0.788]
[1717732405373,2.62578,3808.4,3808.2,0.788]
[1717732407168,2.62578,3808.4,3808.3,0.0936307]
[1717732407558,2.62578,3808.4,3808.2,0.788]
[1717732407795,2.62578,3808.4,3808.3,0.0936307]
[1717732408106,2.62578,3808.4,3808.2,0.788]
[1717732408303,2.62578,3808.4,3808.3,0.0936307]
[1717732408604,2.62578,3808.4,3808.2,0.788]
[1717732408804,2.62578,3808.4,3808.3,0.0936307]
[1717732409108,2.62578,3808.4,3808.2,0.788]
[1717732409280,2.62578,3808.4,3808.3,0.09698293]
[1717732415954,4.20233304,3808.4,3808.3,0.09698293]
[1717732418338,1.57655304,3808.5,3808.3,0.09698293]
[1717732418526,1.57655304,3808.5,3808.4,0.788]
[1717732418864,0.56755909,3808.6,3808.4,0.79133844]
[1717732419052,1.57650989,3808.6,3808.4,0.79133844]
[1717732419363,1.57650989,3808.6,3808.4,1.14242635]
[1717732419931,1.57650989,3808.5,3808.4,1.14242635]
[1717732420135,1.57650989,3808.6,3808.4,1.14242635]
[1717732420330,1.57650989,3808.5,3808.4,0.79133844]
[1717732420563,1.57650989,3808.6,3808.4,0.79133844]
[1717732421422,1.57650989,3808.5,3808.4,0.79133844]
[1717732422155,1.57650989,3808.5,3808.4,0.88501924]
[1717732423051,1.57650989,3808.6,3808.4,0.88501924]
[1717732423362,1.57650989,3808.5,3808.4,0.88501924]
[1717732423566,1.57650989,3808.5,3808.4,0.09701924]
[1717732423748,2.14406898,3808.5,3808.4,0.09701924]
[1717732423946,0.56755909,3808.5,3808.4,0.09701924]
[1717732424952,0.56755909,3808.6,3808.4,0.09701924]
[1717732425152,0.56755909,3808.5,3808.4,0.09701924]
[1717732425353,0.56755909,3808.6,3808.4,0.09701924]
[1717732425528,0.56755909,3808.5,3808.4,0.88501924]
[1717732425952,0.56755909,3808.5,3808.4,0.09701924]
[1717732428983,0.5675568,3808.5,3808.4,0.09701924]
[1717732431955,0.56756403,3808.5,3808.4,0.09701924]
[1717732438086,0.56757871,3808.5,3808.4,0.09701924]
[1717732441752,0.56757002,3808.5,3808.4,0.09701924]
[1717732443311,0.5675647,3808.5,3808.4,0.09701924]
[1717732445658,3.1932647,3808.5,3808.4,0.09701924]
[1717732449131,3.19326605,3808.5,3808.4,0.09701924]
[1717732452526,3.19326605,3808.5,3808.4,0.88501924]
[1717732453317,3.19326605,3808.5,3808.4,0.09701924]
[1717732456532,3.19326605,3808.5,3808.4,0.88501924]
[1717732457375,0.56756605,3808.5,3808.4,0.09701924]
[1717732457568,0.56756605,3808.5,3808.4,0.88501924]